{"text_format":"1","workbook":"xlsx","n_sheets":14,"sheets":["Cover","Info","Results","E01","E02","E03","E04","E05","E06","E07","E08","E09","E10","About"],"not_rendered":{"charts":11,"images":35,"macros":1,"external_links":0,"defined_names":15,"comments":0,"pivot_tables":0},"unopened":[],"bounds":{"document_bytes":16777216,"sheet_cells":100000,"rows_first":2000,"rows_last":500,"rows_between":2000,"halvings":0,"cell_chars":16384,"cell_head_chars":4096},"cells_cut":0,"cells_raw":0,"read":"whole","date_system":"1900"}

{"sheet":"Cover","index":0,"n_rows":0,"n_cols":0,"rows_kept":0,"cut":false,"hidden":false,"merged":[]}

{"sheet":"Info","index":1,"n_rows":39,"n_cols":4,"rows_kept":39,"cut":false,"hidden":false,"merged":[[0,0,0,16383],[38,1,38,3],[39,1,39,3],[2,1,2,2],[3,1,3,2],[4,1,4,2],[5,1,5,2],[6,1,6,2],[37,1,37,3],[31,1,31,2],[32,1,32,2],[33,1,33,2],[34,1,34,2],[35,1,35,2]]}
[]
[]
[null,"This Assessment",null,"Response"]
[null,"City name:"]
[null,"Type of city (municipality, metropolitan areas, etc):"]
[null,"Country:"]
[null,"Date of assessment:"]
[]
[null,"City Profile (Required)","Response","Source Date"]
[null,"Title of the highest level of authority (e.g. Mayor, etc)"]
[null,"Total city population:   "]
[null,"City square kilometers:"]
[null,"Population density (per square kilometer): "]
[null,"Population that are youth (15-24) (%):"]
[null,"Population that are senior citizens (65+) (%):"]
[null,"Gender (female-headed households):"]
[null,"Literacy rate (% literate population):"]
[null,"Poverty rate (% population not in poverty):"]
[null,"Ave. household income (USD):"]
[null,"Residents who are not citizens (%):"]
[null,"Most likely (probable) known disaster risk: "]
[null,"Most severe disaster (known): "]
[]
[null,"City Profile (Optional)","Response","Source Date"]
[null,"Total number of households: "]
[null,"Persons per unit:"]
[null,"Cost of living (USD):"]
[null,"Country’s GDP per capita (USD)"]
[null,"Gini coefficient:"]
[null,"City product per capita (USD):"]
[]
[null,"Local Government Disaster Risk Reduction and Resilience Team",null,"Response"]
[null,"Name of person leading / coordinating completion of the scorecard assessment:"]
[null,"Organization: "]
[null,"Contact details:"]
[null,"Willingness to share results or be used as an example / case study by UNDRR and partners:"]
[]
[null,"Stakeholder Information"]
[null,"Please list  all stakeholders that have supported this assessment below."]

{"sheet":"Results","index":2,"n_rows":152,"n_cols":13,"rows_kept":152,"cut":false,"hidden":false,"merged":[[71,2,71,5],[72,2,72,5],[74,2,74,5],[94,3,94,5],[102,3,102,6],[97,2,97,5],[98,2,98,5],[79,2,79,5],[80,2,80,5],[81,2,81,5],[34,2,34,5],[89,2,89,5],[90,2,90,5],[91,2,91,5],[41,2,41,5],[42,2,42,5],[43,2,43,5],[52,2,52,5],[59,2,59,5],[65,2,65,5],[57,3,57,6],[39,3,39,6],[63,3,63,6],[69,3,69,6],[77,3,77,6],[73,2,73,5],[113,1,113,3],[96,2,96,5],[104,2,104,5],[105,2,105,5],[99,2,99,5],[111,1,111,2]]}
[]
[]
[]
[]
[]
[]
[]
[]
[]
[]
[]
[]
[]
[]
[]
[]
[]
[]
[]
[]
[]
[]
[]
[]
[]
[]
[]
[]
[]
[]
[]
[]
[null,"Essential 01: ",null,{"$f":"D118","v":"Organise for Disaster Resilience - Integration of public health and governance"}]
[]
[null,{"$f":"C130","v":"A1.1"},{"$f":"E130","v":"The health sector is part of multisectoral disaster risk management governance"},null,null,null,{"$f":"F130","v":0}]
[]
[]
[]
[]
[null,"Essential 02: ",null,{"$f":"D119","v":"Identify, Understand and Use Current and Future Risk Scenarios - Integration of public health and disaster scenarios"}]
[]
[null,{"$f":"C131","v":"A2.1"},{"$f":"E131","v":"Inclusion of range of emergencies and disasters (e.g., disease outbreaks/ pandemics, famine, water shortages, etc.) as a disaster scenario in their own right "},null,null,null,{"$f":"F131","v":0}]
[null,{"$f":"C132","v":"A2.2"},{"$f":"E132","v":"Inclusion of foreseeable public health impacts from other disaster risk scenarios (e.g., flood, heat events, earthquake) "},null,null,null,{"$f":"F132","v":0}]
[null,{"$f":"C133","v":"A2.3"},{"$f":"E133","v":"Inclusion in disaster planning of pre-existing chronic health conditions including non-communicable diseases"},null,null,null,{"$f":"F133","v":0}]
[]
[]
[]
[]
[]
[]
[null,"Essential 03:",null,{"$f":"D120","v":"Strengthen Financial Capacity for Resilience - Integration of public health and finances"}]
[]
[null,{"$f":"C134","v":"A3.1"},{"$f":"E134","v":"Funding for public health aspects of resilience "},null,null,null,{"$f":"F134","v":0}]
[]
[]
[]
[]
[null,"Essential 04:",null,{"$f":"D121","v":"Pursue Resilient Urban Development and Design - Integration of public health and land use/building codes"}]
[]
[null,{"$f":"C135","v":"A4.1"},{"$f":"E135","v":"Conformance of key health facilities with resilient land zoning and building codes "},null,null,null,{"$f":"F135","v":0}]
[]
[]
[]
[null,"Essential 05:",null,{"$f":"D122","v":"Safeguard Natural Buffers to Enhance Ecosystems’ Protective Functions - Management of ecosystem services that affect public health"}]
[]
[null,{"$f":"C136","v":"A5.1"},{"$f":"E136","v":"Preservation and management of ecosystem services that provide public health benefits "},null,null,null,{"$f":"F136","v":0}]
[]
[]
[]
[null,"Essential 06:",null,{"$f":"D123","v":"Strengthen Institutional Capacity for Resilience - Integration of public health and institutional capacity"}]
[]
[null,{"$f":"C137","v":"A6.1"},{"$f":"E137","v":"Availability of public health workforce with relevant competencies and skills for disaster resilience"},null,null,null,{"$f":"F137","v":0}]
[null,{"$f":"C138","v":"A6.2"},{"$f":"E138","v":"Sharing of public health system data with other stakeholders"},null,null,null,{"$f":"F138","v":0}]
[null,{"$f":"C139","v":"A6.2.1"},{"$f":"E139","v":"Sharing of other data with public health system stakeholders "},null,null,null,{"$f":"F139","v":0}]
[null,{"$f":"C140","v":"A6.2.2"},{"$f":"E140","v":"Protection of, and access to, individual health records "},null,null,null,{"$f":"F140","v":0}]
[]
[]
[null,"Essential 07: ",null,{"$f":"D124","v":"Understand and Strengthen Societal Capacity for Resilience - Integration of public health and societal capacity"}]
[]
[null,{"$f":"C141","v":"A7.1"},{"$f":"E141","v":"Effectiveness of public health system in community engagement in context of disaster risk management "},null,null,null,{"$f":"F141","v":0}]
[null,{"$f":"C142","v":"A7.1.2"},{"$f":"E142","v":"Community access to and trust of public health information "},null,null,null,{"$f":"F142","v":0}]
[null,{"$f":"C143","v":"A7.2"},{"$f":"E143","v":"Community’s ability to “return to normality” – mental health "},null,null,null,{"$f":"F143","v":0}]
[]
[]
[]
[]
[]
[null,"Essential 08:",null,{"$f":"D125","v":"Increase Infrastructure Resilience - Integration of public health and infrastructure resilience"}]
[]
[null,{"$f":"C144","v":"A8.1"},{"$f":"E144","v":"Strengthening of the structural and non-structural safety and functionality of public health infrastructure items not considered in Essential 8 "},null,null,null,{"$f":"F144","v":0}]
[null,{"$f":"C145","v":"A8.2"},{"$f":"E145","v":"Surge capacity for public health infrastructure, where not considered in Essential 8 "},null,null,null,{"$f":"F145","v":0}]
[null,{"$f":"C146","v":"A8.3"},{"$f":"E146","v":"Continuity of care for those already sick, where not considered in Essential 8. "},null,null,null,{"$f":"F146","v":0}]
[]
[]
[null,"Essential 09:",null,{"$f":"D126","v":"Ensure Effective Disaster Response - Integration of public health and disaster response "}]
[]
[null,{"$f":"C147","v":"A9.1"},{"$f":"E147","v":"Early warning systems for health-related emergencies "},null,null,null,{"$f":"F147","v":0}]
[null,{"$f":"C148","v":"A9.2"},{"$f":"E148","v":"Integration of public health with emergency management "},null,null,null,{"$f":"F148","v":0}]
[null,{"$f":"C149","v":"A9.3"},{"$f":"E149","v":"Consideration of higher risk populations or those living at home with pre-existing conditions "},null,null,null,{"$f":"F149","v":0}]
[null,{"$f":"C150","v":"A9.4"},{"$f":"E150","v":"Ability to deliver public health supplies to people in need. "},null,null,null,{"$f":"F150","v":0}]
[]
[]
[null,"Essential 10: ",null,{"$f":"D127","v":"Expedite Recovery and Build Back Better - Integration of public health and recovery/building back better"}]
[]
[null,{"$f":"C151","v":"A10.1"},{"$f":"E151","v":"Mitigating long term impacts on public health and well-being"},null,null,null,{"$f":"F151","v":0}]
[null,{"$f":"C152","v":"A10.2"},{"$f":"E152","v":"Learning and improving"},null,null,null,{"$f":"F152","v":0}]
[]
[]
[]
[]
[]
[null,{"$f":"TODAY()","v":"2020-05-21"},null,null,null,null,null,{"$f":"Info!$B$4","v":"City name:"},{"$f":"Info!$D$4","v":0},null,{"$f":"Info!$B$6","v":"Country:"},{"$f":"Info!$D$6","v":0}]
[]
[]
[]
[]
[null,null,"Label","Name",null,"Essential","TotalScore","MaxScore","Label"]
[null,null,"S1","Organise for Disaster Resilience - Integration of public health and governance",null,"E1",{"$f":"SUMIFS($F$130:$F$189,$B$130:$B$189,F118)","v":0},{"$f":"COUNTIFS($B$130:$B$152,F118)*5","v":5},"01",null,{"$f":"SUM(G118:G127)","v":0},{"$f":"K118/K119","v":0},{"$f":"CONCATENATE(\"The overall score for this assessment is \",SUM(G118:G127),\" / \",SUM(H118:H127))","v":"The overall score for this assessment is 0 / 115"}]
[null,null,"S2","Identify, Understand and Use Current and Future Risk Scenarios - Integration of public health and disaster scenarios",null,"E2",{"$f":"SUMIFS($F$130:$F$1010,$B$130:$B$1010,F119)","v":0},15,"02",null,{"$f":"SUM(H118:H127)","v":115},{"$f":"1-L118","v":1}]
[null,null,"S3","Strengthen Financial Capacity for Resilience - Integration of public health and finances",null,"E3",0,5,"03"]
[null,null,"S4","Pursue Resilient Urban Development and Design - Integration of public health and land use/building codes",null,"E4",0,5,"04"]
[null,null,"S5","Safeguard Natural Buffers to Enhance Ecosystems’ Protective Functions - Management of ecosystem services that affect public health",null,"E5",0,5,"05"]
[null,null,"S6","Strengthen Institutional Capacity for Resilience - Integration of public health and institutional capacity",null,"E6",0,20,"06"]
[null,null,"S7","Understand and Strengthen Societal Capacity for Resilience - Integration of public health and societal capacity",null,"E7",0,15,"07"]
[null,null,"S8","Increase Infrastructure Resilience - Integration of public health and infrastructure resilience",null,"E8",0,15,"08"]
[null,null,"S9","Ensure Effective Disaster Response - Integration of public health and disaster response ",null,"E9",0,20,"09"]
[null,null,"S10","Expedite Recovery and Build Back Better - Integration of public health and recovery/building back better",null,"E10",0,10,"10"]
[]
[null,"Section","Ref",null,"Question","SelectedScore","ThisScore"]
[null,"E1",{"$f":"'E01'!$G$5","v":"A1.1"},null,{"$f":"'E01'!I5","v":"The health sector is part of multisectoral disaster risk management governance"},{"$f":"IF(G130=\"\",0,IF(G130=0,0,6-G130))","v":0},{"$f":"OFFSET('E01'!$E$1,MATCH(C130,'E01'!G:G,0)+3,0)","v":0}]
[null,"E2",{"$f":"'E02'!$G$5","v":"A2.1"},null,{"$f":"'E02'!I5","v":"Inclusion of range of emergencies and disasters (e.g., disease outbreaks/ pandemics, famine, water shortages, etc.) as a disaster scenario in their own right "},{"$f":"IF(G131=\"\",0,IF(G131=0,0,6-G131))","v":0},{"$f":"OFFSET('E02'!$E$1,MATCH(C131,'E02'!G:G,0)+3,0)","v":0}]
[null,"E2",{"$f":"'E02'!$G$18","v":"A2.2"},null,{"$f":"'E02'!$I$18","v":"Inclusion of foreseeable public health impacts from other disaster risk scenarios (e.g., flood, heat events, earthquake) "},0,{"$f":"OFFSET('E02'!$E$1,MATCH(C132,'E02'!G:G,0)+3,0)","v":0}]
[null,"E2",{"$f":"'E02'!$G$31","v":"A2.3"},null,{"$f":"'E02'!$I$31","v":"Inclusion in disaster planning of pre-existing chronic health conditions including non-communicable diseases"},0,{"$f":"OFFSET('E02'!$E$1,MATCH(C133,'E02'!G:G,0)+3,0)","v":0}]
[null,"E3",{"$f":"'E03'!$G$5","v":"A3.1"},null,{"$f":"'E03'!$I$5","v":"Funding for public health aspects of resilience "},0,{"$f":"OFFSET('E03'!$E$1,MATCH(C134,'E03'!G:G,0)+3,0)","v":0}]
[null,"E4",{"$f":"'E04'!$G$5","v":"A4.1"},null,{"$f":"'E04'!$I$5","v":"Conformance of key health facilities with resilient land zoning and building codes "},0,{"$f":"OFFSET('E04'!$E$1,MATCH(C135,'E04'!G:G,0)+3,0)","v":0}]
[null,"E5",{"$f":"'E05'!$G$5","v":"A5.1"},null,{"$f":"'E05'!$I$5","v":"Preservation and management of ecosystem services that provide public health benefits "},0,{"$f":"OFFSET('E05'!$E$1,MATCH(C136,'E05'!G:G,0)+3,0)","v":0}]
[null,"E6",{"$f":"'E06'!$G$5","v":"A6.1"},null,{"$f":"'E06'!$I$5","v":"Availability of public health workforce with relevant competencies and skills for disaster resilience"},0,{"$f":"OFFSET('E06'!$E$1,MATCH(C137,'E06'!G:G,0)+3,0)","v":0}]
[null,"E6",{"$f":"'E06'!$G$18","v":"A6.2"},null,{"$f":"'E06'!$I$18","v":"Sharing of public health system data with other stakeholders"},0,{"$f":"OFFSET('E06'!$E$1,MATCH(C138,'E06'!G:G,0)+3,0)","v":0}]
[null,"E6",{"$f":"'E06'!$G$31","v":"A6.2.1"},null,{"$f":"'E06'!$I$31","v":"Sharing of other data with public health system stakeholders "},0,{"$f":"OFFSET('E06'!$E$1,MATCH(C139,'E06'!G:G,0)+3,0)","v":0}]
[null,"E6",{"$f":"'E06'!$G$44","v":"A6.2.2"},null,{"$f":"'E06'!$I$44","v":"Protection of, and access to, individual health records "},0,{"$f":"OFFSET('E06'!$E$1,MATCH(C140,'E06'!G:G,0)+3,0)","v":0}]
[null,"E7",{"$f":"'E07'!$G$5","v":"A7.1"},null,{"$f":"'E07'!$I$5","v":"Effectiveness of public health system in community engagement in context of disaster risk management "},0,{"$f":"OFFSET('E07'!$E$1,MATCH(C141,'E07'!G:G,0)+3,0)","v":0}]
[null,"E7",{"$f":"'E07'!$G$18","v":"A7.1.2"},null,{"$f":"'E07'!$I$18","v":"Community access to and trust of public health information "},0,{"$f":"OFFSET('E07'!$E$1,MATCH(C142,'E07'!G:G,0)+3,0)","v":0}]
[null,"E7",{"$f":"'E07'!$G$31","v":"A7.2"},null,{"$f":"'E07'!$I$31","v":"Community’s ability to “return to normality” – mental health "},0,{"$f":"OFFSET('E07'!$E$1,MATCH(C143,'E07'!G:G,0)+3,0)","v":0}]
[null,"E8",{"$f":"'E08'!$G$5","v":"A8.1"},null,{"$f":"'E08'!$I$5","v":"Strengthening of the structural and non-structural safety and functionality of public health infrastructure items not considered in Essential 8 "},0,{"$f":"OFFSET('E08'!$E$1,MATCH(C144,'E08'!G:G,0)+3,0)","v":0}]
[null,"E8",{"$f":"'E08'!$G$18","v":"A8.2"},null,{"$f":"'E08'!$I$18","v":"Surge capacity for public health infrastructure, where not considered in Essential 8 "},{"$f":"IF(G145=\"\",0,IF(G145=0,0,6-G145))","v":0},{"$f":"OFFSET('E08'!$E$1,MATCH(C145,'E08'!G:G,0)+3,0)","v":0}]
[null,"E8",{"$f":"'E08'!$G$31","v":"A8.3"},null,{"$f":"'E08'!$I$31","v":"Continuity of care for those already sick, where not considered in Essential 8. "},0,{"$f":"OFFSET('E08'!$E$1,MATCH(C146,'E08'!G:G,0)+3,0)","v":0}]
[null,"E9",{"$f":"'E09'!$G$5","v":"A9.1"},null,{"$f":"'E09'!$I$5","v":"Early warning systems for health-related emergencies "},0,{"$f":"OFFSET('E09'!$E$1,MATCH(C147,'E09'!G:G,0)+3,0)","v":0}]
[null,"E9",{"$f":"'E09'!$G$18","v":"A9.2"},null,{"$f":"'E09'!$I$18","v":"Integration of public health with emergency management "},0,{"$f":"OFFSET('E09'!$E$1,MATCH(C148,'E09'!G:G,0)+3,0)","v":0}]
[null,"E9",{"$f":"'E09'!$G$31","v":"A9.3"},null,{"$f":"'E09'!$I$31","v":"Consideration of higher risk populations or those living at home with pre-existing conditions "},0,{"$f":"OFFSET('E09'!$E$1,MATCH(C149,'E09'!G:G,0)+3,0)","v":0}]
[null,"E9",{"$f":"'E09'!$G$44","v":"A9.4"},null,{"$f":"'E09'!$I$44","v":"Ability to deliver public health supplies to people in need. "},0,{"$f":"OFFSET('E09'!$E$1,MATCH(C150,'E09'!G:G,0)+3,0)","v":0}]
[null,"E10",{"$f":"'E10'!$G$5","v":"A10.1"},null,{"$f":"'E10'!$I$5","v":"Mitigating long term impacts on public health and well-being"},0,{"$f":"OFFSET('E10'!$E$1,MATCH(C151,'E10'!G:G,0)+3,0)","v":0}]
[null,"E10",{"$f":"'E10'!$G$18","v":"A10.2"},null,{"$f":"'E10'!$I$18","v":"Learning and improving"},0,{"$f":"OFFSET('E10'!$E$1,MATCH(C152,'E10'!G:G,0)+3,0)","v":0}]

{"sheet":"E01","index":3,"n_rows":15,"n_cols":9,"rows_kept":15,"cut":false,"hidden":false,"merged":[[7,2,7,3],[8,2,13,3],[5,2,5,3],[6,2,6,3]]}
["a"]
[]
[null,"A.1 Integration of public health and governance (Essential 1)",null,null,null,null,"A.1",null,"Integration of public health and governance (Essential 1)"]
[]
[null,"A.1.1 The health sector is part of multisectoral disaster risk management governance",null,null,null,null,"A1.1",null,"The health sector is part of multisectoral disaster risk management governance"]
[null,"Question","Comments"]
[]
[null,"Response","Provide means of verification (explanation and evidence)"]
[null,null,null,null,null,{"$f":"IF(E9=1,TRUE,FALSE)","v":false}]
[null,null,null,null,null,{"$f":"IF(E9=2,TRUE,FALSE)","v":false}]
[null,null,null,null,null,{"$f":"IF(E9=3,TRUE,FALSE)","v":false}]
[null,null,null,null,null,{"$f":"IF(E9=4,TRUE,FALSE)","v":false}]
[null,null,null,null,null,{"$f":"IF(E9=5,TRUE,FALSE)","v":false}]
[null,null,null,null,null,{"$f":"IF(E9=6,TRUE,FALSE)","v":false}]
[null,"Actions to achieve maximum resilience","Responsible institution","Timescale"]

{"sheet":"E02","index":4,"n_rows":41,"n_cols":9,"rows_kept":41,"cut":false,"hidden":false,"merged":[[20,2,20,3],[8,2,13,3],[21,2,26,3],[34,2,39,3],[31,2,31,3],[32,2,32,3],[33,2,33,3],[5,2,5,3],[6,2,6,3],[7,2,7,3],[18,2,18,3],[19,2,19,3]]}
[]
[]
[null,"A.2 Integration of public health and disaster scenarios (Essential 2)",null,null,null,null,"A.2",null,"Integration of public health and disaster scenarios (Essential 2)"]
[]
[null,"A2.1 Inclusion of range of emergencies and disasters (e.g., disease outbreaks/ pandemics, famine, water shortages, etc.) as a disaster scenario in their own right ",null,null,null,null,"A2.1",null,"Inclusion of range of emergencies and disasters (e.g., disease outbreaks/ pandemics, famine, water shortages, etc.) as a disaster scenario in their own right "]
[null,"Question","Comments"]
[]
[null,"Response","Provide means of verification (explanation and evidence)"]
[null,null,null,null,null,{"$f":"IF(E9=1,TRUE,FALSE)","v":false}]
[null,null,null,null,null,{"$f":"IF(E9=2,TRUE,FALSE)","v":false}]
[null,null,null,null,null,{"$f":"IF(E9=3,TRUE,FALSE)","v":false}]
[null,null,null,null,null,{"$f":"IF(E9=4,TRUE,FALSE)","v":false}]
[null,null,null,null,null,{"$f":"IF(E9=5,TRUE,FALSE)","v":false}]
[null,null,null,null,null,{"$f":"IF(E9=6,TRUE,FALSE)","v":false}]
[null,"Actions to achieve maximum resilience","Responsible institution","Timescale"]
[]
[]
[null,"A2.2 Inclusion of foreseeable public health impacts from other disaster risk scenarios (e.g., flood, heat events, earthquake) ",null,null,null,null,"A2.2",null,"Inclusion of foreseeable public health impacts from other disaster risk scenarios (e.g., flood, heat events, earthquake) "]
[null,"Question","Comments"]
[]
[null,"Response","Provide means of verification (explanation and evidence)"]
[null,null,null,null,null,{"$f":"IF(E22=1,TRUE,FALSE)","v":false}]
[null,null,null,null,null,{"$f":"IF(E22=2,TRUE,FALSE)","v":false}]
[null,null,null,null,null,{"$f":"IF(E22=3,TRUE,FALSE)","v":false}]
[null,null,null,null,null,{"$f":"IF(E22=4,TRUE,FALSE)","v":false}]
[null,null,null,null,null,{"$f":"IF(E22=5,TRUE,FALSE)","v":false}]
[null,null,null,null,null,{"$f":"IF(E22=6,TRUE,FALSE)","v":false}]
[null,"Actions to achieve maximum resilience","Responsible institution","Timescale"]
[]
[]
[null,"A2.3 Inclusion in disaster planning of pre-existing chronic health conditions including non-communicable diseases",null,null,null,null,"A2.3",null,"Inclusion in disaster planning of pre-existing chronic health conditions including non-communicable diseases"]
[null,"Question","Comments"]
[]
[null,"Response","Provide means of verification (explanation and evidence)"]
[null,null,null,null,null,{"$f":"IF(E35=1,TRUE,FALSE)","v":false}]
[null,null,null,null,null,{"$f":"IF(E35=2,TRUE,FALSE)","v":false}]
[null,null,null,null,null,{"$f":"IF(E35=3,TRUE,FALSE)","v":false}]
[null,null,null,null,null,{"$f":"IF(E35=4,TRUE,FALSE)","v":false}]
[null,null,null,null,null,{"$f":"IF(E35=5,TRUE,FALSE)","v":false}]
[null,null,null,null,null,{"$f":"IF(E35=6,TRUE,FALSE)","v":false}]
[null,"Actions to achieve maximum resilience","Responsible institution","Timescale"]

{"sheet":"E03","index":5,"n_rows":15,"n_cols":9,"rows_kept":15,"cut":false,"hidden":false,"merged":[[4,1,4,3],[5,2,5,3],[6,2,6,3],[7,2,7,3],[8,2,13,3]]}
[]
[]
[null,"A3 Integration of public health and finances (Essential 3)",null,null,null,null,"A3",null,"Integration of public health and finances (Essential 3)"]
[]
[null,"A3.1 Funding for public health aspects of resilience ",null,null,null,null,"A3.1",null,"Funding for public health aspects of resilience "]
[null,"Question","Comments"]
[]
[null,"Response","Provide means of verification (explanation and evidence)"]
[null,null,null,null,null,{"$f":"IF(E9=1,TRUE,FALSE)","v":false}]
[null,null,null,null,null,{"$f":"IF(E9=2,TRUE,FALSE)","v":false}]
[null,null,null,null,null,{"$f":"IF(E9=3,TRUE,FALSE)","v":false}]
[null,null,null,null,null,{"$f":"IF(E9=4,TRUE,FALSE)","v":false}]
[null,null,null,null,null,{"$f":"IF(E9=5,TRUE,FALSE)","v":false}]
[null,null,null,null,null,{"$f":"IF(E9=6,TRUE,FALSE)","v":false}]
[null,"Actions to achieve maximum resilience","Responsible institution","Timescale"]

{"sheet":"E04","index":6,"n_rows":15,"n_cols":9,"rows_kept":15,"cut":false,"hidden":false,"merged":[[4,1,4,3],[5,2,5,3],[6,2,6,3],[7,2,7,3],[8,2,13,3]]}
[]
[]
[null,"A4 Integration of public health and land use/building codes (Essential 4)",null,null,null,null,"A4",null,"Integration of public health and land use/building codes (Essential 4)"]
[]
[null,"A4.1 Conformance of key health facilities with resilient land zoning and building codes ",null,null,null,null,"A4.1",null,"Conformance of key health facilities with resilient land zoning and building codes "]
[null,"Question","Comments"]
[]
[null,"Response","Provide means of verification (explanation and evidence)"]
[null,null,null,null,null,{"$f":"IF(E9=1,TRUE,FALSE)","v":false}]
[null,null,null,null,null,{"$f":"IF(E9=2,TRUE,FALSE)","v":false}]
[null,null,null,null,null,{"$f":"IF(E9=3,TRUE,FALSE)","v":false}]
[null,null,null,null,null,{"$f":"IF(E9=4,TRUE,FALSE)","v":false}]
[null,null,null,null,null,{"$f":"IF(E9=5,TRUE,FALSE)","v":false}]
[null,null,null,null,null,{"$f":"IF(E9=6,TRUE,FALSE)","v":false}]
[null,"Actions to achieve maximum resilience","Responsible institution","Timescale"]

{"sheet":"E05","index":7,"n_rows":15,"n_cols":9,"rows_kept":15,"cut":false,"hidden":false,"merged":[[4,1,4,3],[5,2,5,3],[6,2,6,3],[7,2,7,3],[8,2,13,3]]}
[]
[]
[null,"A5 Management of ecosystem services that affect public health (Essential 5)",null,null,null,null,"A5",null,"Management of ecosystem services that affect public health (Essential 5)"]
[]
[null,"A5.1 Preservation and management of ecosystem services that provide public health benefits ",null,null,null,null,"A5.1",null,"Preservation and management of ecosystem services that provide public health benefits "]
[null,"Question","Comments"]
[]
[null,"Response","Provide means of verification (explanation and evidence)"]
[null,null,null,null,null,{"$f":"IF(E9=1,TRUE,FALSE)","v":false}]
[null,null,null,null,null,{"$f":"IF(E9=2,TRUE,FALSE)","v":false}]
[null,null,null,null,null,{"$f":"IF(E9=3,TRUE,FALSE)","v":false}]
[null,null,null,null,null,{"$f":"IF(E9=4,TRUE,FALSE)","v":false}]
[null,null,null,null,null,{"$f":"IF(E9=5,TRUE,FALSE)","v":false}]
[null,null,null,null,null,{"$f":"IF(E9=6,TRUE,FALSE)","v":false}]
[null,"Actions to achieve maximum resilience","Responsible institution","Timescale"]

{"sheet":"E06","index":8,"n_rows":54,"n_cols":9,"rows_kept":54,"cut":false,"hidden":false,"merged":[[18,2,18,3],[47,2,52,3],[34,2,39,3],[21,2,26,3],[19,2,19,3],[20,2,20,3],[30,1,30,3],[31,2,31,3],[32,2,32,3],[33,2,33,3],[43,1,43,3],[44,2,44,3],[45,2,45,3],[46,2,46,3],[4,1,4,3],[5,2,5,3],[6,2,6,3],[7,2,7,3],[17,1,17,3],[8,2,13,3]]}
[]
[]
[null,"A6 Integration of public health and institutional capacity (Essential 6)",null,null,null,null,"A6",null,"Integration of public health and institutional capacity (Essential 6)"]
[]
[null,"A6.1 Availability of public health workforce with relevant competencies and skills for disaster resilience",null,null,null,null,"A6.1",null,"Availability of public health workforce with relevant competencies and skills for disaster resilience"]
[null,"Question","Comments"]
[]
[null,"Response","Provide means of verification (explanation and evidence)"]
[null,null,null,null,null,{"$f":"IF(E9=1,TRUE,FALSE)","v":false}]
[null,null,null,null,null,{"$f":"IF(E9=2,TRUE,FALSE)","v":false}]
[null,null,null,null,null,{"$f":"IF(E9=3,TRUE,FALSE)","v":false}]
[null,null,null,null,null,{"$f":"IF(E9=4,TRUE,FALSE)","v":false}]
[null,null,null,null,null,{"$f":"IF(E9=5,TRUE,FALSE)","v":false}]
[null,null,null,null,null,{"$f":"IF(E9=6,TRUE,FALSE)","v":false}]
[null,"Actions to achieve maximum resilience","Responsible institution","Timescale"]
[]
[]
[null,"A6.2 Sharing of public health system data with other stakeholders ",null,null,null,null,"A6.2",null,"Sharing of public health system data with other stakeholders"]
[null,"Question","Comments"]
[]
[null,"Response","Provide means of verification (explanation and evidence)"]
[null,null,null,null,null,{"$f":"IF(E22=1,TRUE,FALSE)","v":false}]
[null,null,null,null,null,{"$f":"IF(E22=2,TRUE,FALSE)","v":false}]
[null,null,null,null,null,{"$f":"IF(E22=3,TRUE,FALSE)","v":false}]
[null,null,null,null,null,{"$f":"IF(E22=4,TRUE,FALSE)","v":false}]
[null,null,null,null,null,{"$f":"IF(E22=5,TRUE,FALSE)","v":false}]
[null,null,null,null,null,{"$f":"IF(E22=6,TRUE,FALSE)","v":false}]
[null,"Actions to achieve maximum resilience","Responsible institution","Timescale"]
[]
[]
[null,"A6.2.1 Sharing of other data with public health system stakeholders ",null,null,null,null,"A6.2.1",null,"Sharing of other data with public health system stakeholders "]
[null,"Question","Comments"]
[]
[null,"Response","Provide means of verification (explanation and evidence)"]
[null,null,null,null,null,{"$f":"IF(E35=1,TRUE,FALSE)","v":false}]
[null,null,null,null,null,{"$f":"IF(E35=2,TRUE,FALSE)","v":false}]
[null,null,null,null,null,{"$f":"IF(E35=3,TRUE,FALSE)","v":false}]
[null,null,null,null,null,{"$f":"IF(E35=4,TRUE,FALSE)","v":false}]
[null,null,null,null,null,{"$f":"IF(E35=5,TRUE,FALSE)","v":false}]
[null,null,null,null,null,{"$f":"IF(E35=6,TRUE,FALSE)","v":false}]
[null,"Actions to achieve maximum resilience","Responsible institution","Timescale"]
[]
[]
[null,"A6.2.2 Protection of, and access to, individual health records ",null,null,null,null,"A6.2.2",null,"Protection of, and access to, individual health records "]
[null,"Question","Comments"]
[]
[null,"Response","Provide means of verification (explanation and evidence)"]
[null,null,null,null,null,{"$f":"IF(E48=1,TRUE,FALSE)","v":false}]
[null,null,null,null,null,{"$f":"IF(E48=2,TRUE,FALSE)","v":false}]
[null,null,null,null,null,{"$f":"IF(E48=3,TRUE,FALSE)","v":false}]
[null,null,null,null,null,{"$f":"IF(E48=4,TRUE,FALSE)","v":false}]
[null,null,null,null,null,{"$f":"IF(E48=5,TRUE,FALSE)","v":false}]
[null,null,null,null,null,{"$f":"IF(E48=6,TRUE,FALSE)","v":false}]
[null,"Actions to achieve maximum resilience","Responsible institution","Timescale"]

{"sheet":"E07","index":9,"n_rows":43,"n_cols":9,"rows_kept":43,"cut":false,"hidden":false,"merged":[[18,2,18,3],[8,2,13,3],[21,2,26,3],[34,2,39,3],[19,2,19,3],[20,2,20,3],[30,1,30,3],[31,2,31,3],[32,2,32,3],[33,2,33,3],[4,1,4,3],[5,2,5,3],[6,2,6,3],[7,2,7,3],[17,1,17,3]]}
[]
[]
[null,"A7 Integration of public health and societal capacity (Essential 7)",null,null,null,null,"A7",null,"Integration of public health and societal capacity (Essential 7)"]
[null,null,null,null,null,null,""]
[null,"A7.1 Effectiveness of public health system in community engagement in context of disaster risk management ",null,null,null,null,"A7.1",null,"Effectiveness of public health system in community engagement in context of disaster risk management "]
[null,"Question","Comments",null,null,null,""]
[null,null,null,null,null,null,""]
[null,"Response","Provide means of verification (explanation and evidence)",null,null,null,""]
[null,null,null,null,null,{"$f":"IF(E9=1,TRUE,FALSE)","v":false},""]
[null,null,null,null,null,{"$f":"IF(E9=2,TRUE,FALSE)","v":false},""]
[null,null,null,null,null,{"$f":"IF(E9=3,TRUE,FALSE)","v":false},""]
[null,null,null,null,null,{"$f":"IF(E9=4,TRUE,FALSE)","v":false},""]
[null,null,null,null,null,{"$f":"IF(E9=5,TRUE,FALSE)","v":false},""]
[null,null,null,null,null,{"$f":"IF(E9=6,TRUE,FALSE)","v":false},""]
[null,"Actions to achieve maximum resilience","Responsible institution","Timescale",null,null,""]
[null,null,null,null,null,null,""]
[null,null,null,null,null,null,""]
[null,"A7.1.2 Community access to and trust of public health information ",null,null,null,null,"A7.1.2",null,"Community access to and trust of public health information "]
[null,"Question","Comments",null,null,null,""]
[null,null,null,null,null,null,""]
[null,"Response","Provide means of verification (explanation and evidence)",null,null,null,""]
[null,null,null,null,null,{"$f":"IF(E22=1,TRUE,FALSE)","v":false},""]
[null,null,null,null,null,{"$f":"IF(E22=2,TRUE,FALSE)","v":false},""]
[null,null,null,null,null,{"$f":"IF(E22=3,TRUE,FALSE)","v":false},""]
[null,null,null,null,null,{"$f":"IF(E22=4,TRUE,FALSE)","v":false},""]
[null,null,null,null,null,{"$f":"IF(E22=5,TRUE,FALSE)","v":false},""]
[null,null,null,null,null,{"$f":"IF(E22=6,TRUE,FALSE)","v":false},""]
[null,"Actions to achieve maximum resilience","Responsible institution","Timescale",null,null,""]
[null,null,null,null,null,null,""]
[null,null,null,null,null,null,""]
[null,"A7.2 Community’s ability to “return to normality” – mental health ",null,null,null,null,"A7.2",null,"Community’s ability to “return to normality” – mental health "]
[null,"Question","Comments",null,null,null,""]
[null,null,null,null,null,null,""]
[null,"Response","Provide means of verification (explanation and evidence)",null,null,null,""]
[null,null,null,null,null,{"$f":"IF(E35=1,TRUE,FALSE)","v":false},""]
[null,null,null,null,null,{"$f":"IF(E35=2,TRUE,FALSE)","v":false},""]
[null,null,null,null,null,{"$f":"IF(E35=3,TRUE,FALSE)","v":false},""]
[null,null,null,null,null,{"$f":"IF(E35=4,TRUE,FALSE)","v":false},""]
[null,null,null,null,null,{"$f":"IF(E35=5,TRUE,FALSE)","v":false},""]
[null,null,null,null,null,{"$f":"IF(E35=6,TRUE,FALSE)","v":false},""]
[null,"Actions to achieve maximum resilience","Responsible institution","Timescale",null,null,""]
[null,null,null,null,null,null,""]
[null,null,null,null,null,null,""]

{"sheet":"E08","index":10,"n_rows":43,"n_cols":9,"rows_kept":43,"cut":false,"hidden":false,"merged":[[34,2,39,3],[21,2,26,3],[8,2,13,3],[33,2,33,3],[4,1,4,3],[5,2,5,3],[6,2,6,3],[7,2,7,3],[17,1,17,3],[18,2,18,3],[19,2,19,3],[20,2,20,3],[30,1,30,3],[31,2,31,3],[32,2,32,3]]}
[]
[]
[null,"A8 Integration of public health and infrastructure resilience (Essential 8)",null,null,null,null,"A8",null,"Integration of public health and infrastructure resilience (Essential 8)"]
[null,null,null,null,null,null,""]
[null,"A8.1 Strengthening of the structural and non-structural safety and functionality of public health infrastructure items not considered in Essential 8 ",null,null,null,null,"A8.1",null,"Strengthening of the structural and non-structural safety and functionality of public health infrastructure items not considered in Essential 8 "]
[null,"Question","Comments",null,null,null,""]
[null,null,null,null,null,null,""]
[null,"Response","Provide means of verification (explanation and evidence)",null,null,null,""]
[null,null,null,null,null,{"$f":"IF(E9=1,TRUE,FALSE)","v":false},""]
[null,null,null,null,null,{"$f":"IF(E9=2,TRUE,FALSE)","v":false},""]
[null,null,null,null,null,{"$f":"IF(E9=3,TRUE,FALSE)","v":false},""]
[null,null,null,null,null,{"$f":"IF(E9=4,TRUE,FALSE)","v":false},""]
[null,null,null,null,null,{"$f":"IF(E9=5,TRUE,FALSE)","v":false},""]
[null,null,null,null,null,{"$f":"IF(E9=6,TRUE,FALSE)","v":false},""]
[null,"Actions to achieve maximum resilience","Responsible institution","Timescale",null,null,""]
[null,null,null,null,null,null,""]
[null,null,null,null,null,null,""]
[null,"A8.2 Surge capacity for public health infrastructure, where not considered in Essential 8 ",null,null,null,null,"A8.2",null,"Surge capacity for public health infrastructure, where not considered in Essential 8 "]
[null,"Question","Comments",null,null,null,""]
[null,null,null,null,null,null,""]
[null,"Response","Provide means of verification (explanation and evidence)",null,null,null,""]
[null,null,null,null,null,{"$f":"IF(E22=1,TRUE,FALSE)","v":false},""]
[null,null,null,null,null,{"$f":"IF(E22=2,TRUE,FALSE)","v":false},""]
[null,null,null,null,null,{"$f":"IF(E22=3,TRUE,FALSE)","v":false},""]
[null,null,null,null,null,{"$f":"IF(E22=4,TRUE,FALSE)","v":false},""]
[null,null,null,null,null,{"$f":"IF(E22=5,TRUE,FALSE)","v":false},""]
[null,null,null,null,null,{"$f":"IF(E22=6,TRUE,FALSE)","v":false},""]
[null,"Actions to achieve maximum resilience","Responsible institution","Timescale",null,null,""]
[null,null,null,null,null,null,""]
[null,null,null,null,null,null,""]
[null,"A8.3 Continuity of care for those already sick, where not considered in Essential 8. ",null,null,null,null,"A8.3",null,"Continuity of care for those already sick, where not considered in Essential 8. "]
[null,"Question","Comments",null,null,null,""]
[null,null,null,null,null,null,""]
[null,"Response","Provide means of verification (explanation and evidence)",null,null,null,""]
[null,null,null,null,null,{"$f":"IF(E35=1,TRUE,FALSE)","v":false},""]
[null,null,null,null,null,{"$f":"IF(E35=2,TRUE,FALSE)","v":false},""]
[null,null,null,null,null,{"$f":"IF(E35=3,TRUE,FALSE)","v":false},""]
[null,null,null,null,null,{"$f":"IF(E35=4,TRUE,FALSE)","v":false},""]
[null,null,null,null,null,{"$f":"IF(E35=5,TRUE,FALSE)","v":false},""]
[null,null,null,null,null,{"$f":"IF(E35=6,TRUE,FALSE)","v":false},""]
[null,"Actions to achieve maximum resilience","Responsible institution","Timescale",null,null,""]
[null,null,null,null,null,null,""]
[null,null,null,null,null,null,""]

{"sheet":"E09","index":11,"n_rows":56,"n_cols":9,"rows_kept":56,"cut":false,"hidden":false,"merged":[[19,2,19,3],[20,2,20,3],[4,1,4,3],[5,2,5,3],[6,2,6,3],[7,2,7,3],[17,1,17,3],[18,2,18,3],[8,2,13,3],[47,2,52,3],[34,2,39,3],[21,2,26,3],[30,1,30,3],[31,2,31,3],[32,2,32,3],[33,2,33,3],[43,1,43,3],[44,2,44,3],[45,2,45,3],[46,2,46,3]]}
[]
[]
[null,"A9 Integration of public health and disaster response (Essential 9)",null,null,null,null,"A9",null,"Integration of public health and disaster response (Essential 9)"]
[null,null,null,null,null,null,""]
[null,"A9.1 Early warning systems for health-related emergencies ",null,null,null,null,"A9.1",null,"Early warning systems for health-related emergencies "]
[null,"Question","Comments",null,null,null,""]
[null,null,null,null,null,null,""]
[null,"Response","Provide means of verification (explanation and evidence)",null,null,null,""]
[null,null,null,null,null,{"$f":"IF(E9=1,TRUE,FALSE)","v":false},""]
[null,null,null,null,null,{"$f":"IF(E9=2,TRUE,FALSE)","v":false},""]
[null,null,null,null,null,{"$f":"IF(E9=3,TRUE,FALSE)","v":false},""]
[null,null,null,null,null,{"$f":"IF(E9=4,TRUE,FALSE)","v":false},""]
[null,null,null,null,null,{"$f":"IF(E9=5,TRUE,FALSE)","v":false},""]
[null,null,null,null,null,{"$f":"IF(E9=6,TRUE,FALSE)","v":false},""]
[null,"Actions to achieve maximum resilience","Responsible institution","Timescale",null,null,""]
[null,null,null,null,null,null,""]
[null,null,null,null,null,null,""]
[null,"A9.2 Integration of public health with emergency management ",null,null,null,null,"A9.2",null,"Integration of public health with emergency management "]
[null,"Question","Comments",null,null,null,""]
[null,null,null,null,null,null,""]
[null,"Response","Provide means of verification (explanation and evidence)",null,null,null,""]
[null,null,null,null,null,{"$f":"IF(E22=1,TRUE,FALSE)","v":false},""]
[null,null,null,null,null,{"$f":"IF(E22=2,TRUE,FALSE)","v":false},""]
[null,null,null,null,null,{"$f":"IF(E22=3,TRUE,FALSE)","v":false},""]
[null,null,null,null,null,{"$f":"IF(E22=4,TRUE,FALSE)","v":false},""]
[null,null,null,null,null,{"$f":"IF(E22=5,TRUE,FALSE)","v":false},""]
[null,null,null,null,null,{"$f":"IF(E22=6,TRUE,FALSE)","v":false},""]
[null,"Actions to achieve maximum resilience","Responsible institution","Timescale",null,null,""]
[null,null,null,null,null,null,""]
[null,null,null,null,null,null,""]
[null,"A9.3 Consideration of higher risk populations or those living at home with pre-existing conditions ",null,null,null,null,"A9.3",null,"Consideration of higher risk populations or those living at home with pre-existing conditions "]
[null,"Question","Comments",null,null,null,""]
[null,null,null,null,null,null,""]
[null,"Response","Provide means of verification (explanation and evidence)",null,null,null,""]
[null,null,null,null,null,{"$f":"IF(E35=1,TRUE,FALSE)","v":false},""]
[null,null,null,null,null,{"$f":"IF(E35=2,TRUE,FALSE)","v":false},""]
[null,null,null,null,null,{"$f":"IF(E35=3,TRUE,FALSE)","v":false},""]
[null,null,null,null,null,{"$f":"IF(E35=4,TRUE,FALSE)","v":false},""]
[null,null,null,null,null,{"$f":"IF(E35=5,TRUE,FALSE)","v":false},""]
[null,null,null,null,null,{"$f":"IF(E35=6,TRUE,FALSE)","v":false},""]
[null,"Actions to achieve maximum resilience","Responsible institution","Timescale",null,null,""]
[null,null,null,null,null,null,""]
[null,null,null,null,null,null,""]
[null,"A9.4 Ability to deliver public health supplies to people in need. ",null,null,null,null,"A9.4",null,"Ability to deliver public health supplies to people in need. "]
[null,"Question","Comments",null,null,null,""]
[null,null,null,null,null,null,""]
[null,"Response","Provide means of verification (explanation and evidence)",null,null,null,""]
[null,null,null,null,null,{"$f":"IF(E48=1,TRUE,FALSE)","v":false},""]
[null,null,null,null,null,{"$f":"IF(E48=2,TRUE,FALSE)","v":false},""]
[null,null,null,null,null,{"$f":"IF(E48=3,TRUE,FALSE)","v":false},""]
[null,null,null,null,null,{"$f":"IF(E48=4,TRUE,FALSE)","v":false},""]
[null,null,null,null,null,{"$f":"IF(E48=5,TRUE,FALSE)","v":false},""]
[null,null,null,null,null,{"$f":"IF(E48=6,TRUE,FALSE)","v":false},""]
[null,"Actions to achieve maximum resilience","Responsible institution","Timescale",null,null,""]
[null,null,null,null,null,null,""]
[null,null,null,null,null,null,""]

{"sheet":"E10","index":12,"n_rows":28,"n_cols":9,"rows_kept":28,"cut":false,"hidden":false,"merged":[[21,2,26,3],[8,2,13,3],[19,2,19,3],[20,2,20,3],[18,2,18,3],[4,1,4,3],[5,2,5,3],[6,2,6,3],[7,2,7,3],[17,1,17,3]]}
[]
[]
[null,"A10 Integration of public health and recovery/building back better (Essential 10)",null,null,null,null,"A10",null,"Integration of public health and recovery/building back better (Essential 10)"]
[]
[null,"A10.1 Mitigating long term impacts on public health and well-being",null,null,null,null,"A10.1",null,"Mitigating long term impacts on public health and well-being"]
[null,"Question","Comments"]
[]
[null,"Response","Provide means of verification (explanation and evidence)"]
[null,null,null,null,null,{"$f":"IF(E9=1,TRUE,FALSE)","v":false}]
[null,null,null,null,null,{"$f":"IF(E9=2,TRUE,FALSE)","v":false}]
[null,null,null,null,null,{"$f":"IF(E9=3,TRUE,FALSE)","v":false}]
[null,null,null,null,null,{"$f":"IF(E9=4,TRUE,FALSE)","v":false}]
[null,null,null,null,null,{"$f":"IF(E9=5,TRUE,FALSE)","v":false}]
[null,null,null,null,null,{"$f":"IF(E9=6,TRUE,FALSE)","v":false}]
[null,"Actions to achieve maximum resilience","Responsible institution","Timescale"]
[]
[]
[null,"A10.2 Learning and improving",null,null,null,null,"A10.2",null,"Learning and improving"]
[null,"Question","Comments"]
[]
[null,"Response","Provide means of verification (explanation and evidence)"]
[null,null,null,null,null,{"$f":"IF(E22=1,TRUE,FALSE)","v":false}]
[null,null,null,null,null,{"$f":"IF(E22=2,TRUE,FALSE)","v":false}]
[null,null,null,null,null,{"$f":"IF(E22=3,TRUE,FALSE)","v":false}]
[null,null,null,null,null,{"$f":"IF(E22=4,TRUE,FALSE)","v":false}]
[null,null,null,null,null,{"$f":"IF(E22=5,TRUE,FALSE)","v":false}]
[null,null,null,null,null,{"$f":"IF(E22=6,TRUE,FALSE)","v":false}]
[null,"Actions to achieve maximum resilience","Responsible institution","Timescale"]

{"sheet":"About","index":13,"n_rows":0,"n_cols":0,"rows_kept":0,"cut":false,"hidden":false,"merged":[]}